bitfinex/quotes_SOLUSD_20250622
["timestamp","ask_amount","ask_price","bid_price","bid_amount"]
[1750596235075,2.78548767,133.04,133.0,36.4985706]
[1750596235381,2.78548767,133.05,133.0,36.4985706]
[1750596235584,2.78449693,133.04,133.0,36.4985706]
[1750596235785,2.78449693,133.05,133.0,36.4985706]
[1750596236002,2.78449693,133.04,133.0,36.4985706]
[1750596236171,2.78449693,133.05,133.0,36.4985706]
[1750596236374,26.0,133.06,133.0,36.4985706]
[1750596236375,2.78449693,133.04,133.0,36.4985706]
[1750596236699,2.78347189,133.05,133.0,36.4985706]
[1750596236880,2.78347189,133.04,133.0,36.4985706]
[1750596237200,2.78347189,133.05,133.0,36.4985706]
[1750596237403,2.78347189,133.04,133.0,36.4985706]
[1750596237608,2.78347189,133.05,133.0,36.4985706]
[1750596237894,2.78347189,133.05,133.01,26.16732006]
[1750596238482,146.9,133.07,133.01,26.16732006]
[1750596238990,26.0,133.07,133.01,44.96289933]
[1750596239989,26.0,133.09,133.01,44.96289933]
[1750596240802,2.78046284,133.08,133.01,44.96289933]
[1750596243677,26.0,133.09,133.03,18.64964886]
[1750596243875,26.0,133.09,133.05,18.64964886]
[1750596245399,11.2357155,133.12,133.06,26.30392303]
[1750596245593,11.2357155,133.12,133.09,18.64964886]
[1750596247392,11.2357155,133.12,133.09,26.16297064]
[1750596247597,11.2357155,133.12,133.08,7.51406297]
[1750596247914,26.0,133.11,133.05,44.18635671]
[1750596248112,26.0,133.11,133.05,15.22635671]
[1750596248413,2.77544596,133.1,133.05,15.22635671]
[1750596250029,16.78658242,133.12,133.06,47.60964886]
[1750596250189,11.2357155,133.12,133.06,47.60964886]
[1750596250889,11.2357155,133.12,133.08,18.64964886]
[1750596251105,6.15958669,133.19,133.12,18.64964886]
[1750596251283,2.7737327,133.18,133.12,47.64964886]
[1750596251490,26.0,133.17,133.12,47.64964886]
[1750596251814,2.7737327,133.16,133.12,47.64964886]
[1750596251995,2.7737327,133.16,133.13,7.51145496]
[1750596252188,10.28193468,133.19,133.12,47.64964886]
[1750596252382,26.0,133.16,133.12,47.64964886]
[1750596252795,6.0896325,133.19,133.12,55.16153969]
[1750596253114,2.77410189,133.19,133.12,55.16153969]
[1750596253409,26.0,133.17,133.12,55.16153969]
[1750596254930,26.0,133.19,133.12,55.16153969]
[1750596255212,2.76959152,133.18,133.12,55.16153969]
[1750596255985,26.0,133.17,133.12,55.16153969]
[1750596256184,2.76553248,133.16,133.11,7.7898]
[1750596256389,146.9,133.15,133.11,15.30232326]
[1750596257421,146.9,133.15,133.12,18.64964886]
[1750596257804,15.35378381,133.2,133.12,18.64964886]
[1750596258020,26.0,133.19,133.12,18.64964886]
[1750596258306,2.76910755,133.18,133.13,7.51145496]
[1750596258490,26.0,133.19,133.13,7.51145496]
[1750596258708,26.0,133.18,133.13,7.51145496]
[1750596259991,26.0,133.18,133.12,7.51186586]
[1750596259992,28.76627916,133.17,133.12,7.51186586]
[1750596260225,172.9,133.17,133.12,7.51186586]
[1750596260790,172.9,133.17,133.1,24.94964886]
[1750596260791,2.76603284,133.16,133.1,18.64964886]
[1750596261028,26.0,133.12,133.07,7.6987]
[1750596262109,26.0,133.12,133.07,15.2133253]
[1750596263698,26.0,133.12,133.08,18.64964886]
[1750596263900,26.0,133.12,133.07,15.2133253]
[1750596264422,2.7725045,133.11,133.07,15.2133253]
[1750596264843,2.77249682,133.11,133.07,15.2133253]
[1750596267222,175.67249682,133.1,133.03,1.6098]
[1750596267405,26.0,133.06,133.0,6.5717]
[1750596267610,2.77290325,133.05,133.0,6.5717]
[1750596268003,2.77290325,133.05,133.01,18.64964886]
[1750596268203,2.77290325,133.07,133.02,7.51766651]
[1750596268523,2.77290325,133.06,133.02,7.51766651]
[1750596268821,2.77631468,133.07,133.03,18.64964886]
[1750596269030,2.77631468,133.06,133.03,18.64964886]
[1750596269208,2.77631468,133.07,133.03,18.64964886]
[1750596269527,2.77631468,133.06,133.02,7.51766651]
[1750596269729,2.77631468,133.05,133.01,55.12771157]
[1750596269951,2.77631468,133.06,133.01,55.12771157]
[1750596270224,2.77631468,133.05,133.01,55.12771157]
[1750596270438,2.77637523,133.06,133.01,55.12771157]
[1750596270611,2.77637523,133.05,133.01,55.12771157]
[1750596270810,2.77637523,133.06,133.01,55.12771157]
[1750596271010,2.7772156,133.05,133.01,55.12771157]
[1750596271217,2.7772156,133.06,133.01,55.12771157]
[1750596271427,2.7772156,133.05,133.01,55.12771157]
[1750596271629,2.7772156,133.06,133.01,55.12771157]
[1750596271931,2.7772156,133.05,133.01,55.12771157]
[1750596272131,2.7772156,133.06,133.01,55.12771157]
[1750596272334,2.7772156,133.05,133.01,55.12771157]
[1750596272505,2.7772156,133.06,133.02,18.64964886]
[1750596272707,2.7772156,133.07,133.02,18.64964886]
[1750596272915,2.7772156,133.06,133.02,18.64964886]
[1750596273112,2.7772156,133.07,133.02,18.64964886]
[1750596273318,2.77717966,133.07,133.02,18.64964886]
[1750596273835,2.77717966,133.07,133.02,26.16675591]
[1750596274209,2.77717966,133.06,133.02,26.16675591]
[1750596274409,2.77717966,133.07,133.02,26.16675591]
[1750596274630,2.77717966,133.06,133.02,26.16675591]
[1750596274814,2.77717966,133.07,133.02,26.16675591]
[1750596275016,149.67717966,133.06,133.0,14.09037168]
[1750596275331,7.51487826,133.07,132.99,1.6098]
[1750596275332,175.67717966,133.05,132.99,1.6098]
[1750596275505,2.77717966,133.04,133.0,7.5186647]
[1750596276033,2.77578285,133.04,133.01,18.64964886]
[1750596276219,172.9,133.05,133.01,18.64964886]
[1750596276530,2.77602797,133.04,133.01,18.64964886]
[1750596276731,2.77602797,133.04,133.0,7.5186647]
[1750596276937,2.77602797,133.04,132.99,27.77863078]
[1750596279523,172.9,133.05,132.99,27.77863078]
[1750596280940,149.67431549,133.04,132.99,27.77863078]
[1750596281132,146.9,133.04,132.99,27.77863078]
[1750596282244,2.77518198,133.03,132.99,27.77863078]
[1750596282414,146.9,133.04,132.99,27.77863078]
[1750596285622,146.9,133.04,132.99,26.16883078]
[1750596285832,2.77182616,133.03,132.99,7.51918192]
[1750596286532,8.9093535,133.03,132.99,7.51918192]
[1750596286740,26.0,133.02,132.97,13.82029785]
[1750596287054,2.77147477,133.01,132.97,13.82036784]
[1750596287346,146.9,133.04,132.98,18.64964886]
[1750596287526,2.77173137,133.03,132.98,18.64964886]
[1750596289436,2.77173137,133.03,132.99,7.51936235]
[1750596289637,146.9,133.04,132.99,7.51936235]
[1750596289950,2.77107558,133.03,132.99,7.51936235]
[1750596290335,146.9,133.04,132.99,7.51936235]
[1750596292047,146.9,133.04,133.0,18.64964886]
[1750596293535,146.9,133.04,133.01,7.51823171]
[1750596297632,172.9,133.07,133.02,18.64964886]
[1750596298760,172.9,133.07,133.03,7.5171014]
[1750596301131,146.9,133.07,133.03,7.5171014]
[1750596302161,2.77919178,133.06,133.03,7.5171014]
[1750596302333,146.9,133.07,133.03,7.5171014]
[1750596302530,2.77913777,133.06,133.03,7.5171014]
[1750596302755,2.77913777,133.06,132.99,7.9967]
[1750596303069,2.77913777,133.05,133.0,7.51879699]
[1750596303233,8.34219265,133.06,133.0,7.51879699]
[1750596303432,2.77913777,133.05,133.0,7.51879699]
[1750596303864,2.77913777,133.04,133.0,7.51879699]
[1750596304062,28.77913777,133.03,133.0,7.51879699]
[1750596304266,28.77913777,133.03,132.95,33.5944]
[1750596304267,2.77913777,133.02,132.95,7.5944]
[1750596304464,2.785139,133.01,132.95,18.64964886]
[1750596304680,2.785139,133.0,132.95,18.64964886]
[1750596304976,2.785139,132.99,132.95,18.64964886]
[1750596305183,5.56349725,133.02,132.96,7.52105896]
[1750596305357,2.78598303,133.01,132.97,18.64964886]
[1750596305555,2.78598303,133.0,132.97,18.64964886]
[1750596305778,2.78598303,133.02,132.97,18.64964886]
[1750596305954,146.9,133.03,132.97,18.64964886]
[1750596306163,2.7866576,133.02,132.99,18.64964886]
[1750596306365,26.0,133.03,132.99,18.64964886]
[1750596306673,2.78776695,133.02,132.99,18.64964886]
[1750596306877,26.0,133.03,132.99,18.64964886]
[1750596307056,2.78776956,133.02,132.99,18.64964886]
[1750596307257,26.0,133.03,133.0,7.51879699]
[1750596307552,2.78779941,133.02,133.0,7.51879699]
[1750596307876,2.78967449,133.01,133.0,7.51879699]
[1750596309984,26.0,133.03,133.0,7.51879699]
[1750596310180,2.79306588,133.02,133.0,7.51879699]
[1750596310477,2.79306588,133.01,133.0,7.51879699]
[1750596310685,26.0,133.03,133.0,7.51879699]
[1750596310858,2.79307142,133.02,133.01,18.64964886]
[1750596311766,2.79307142,133.02,132.99,24.94964886]
[1750596311974,2.79307142,133.01,133.0,7.51858561]
[1750596312157,5.57618702,133.05,133.0,7.51858561]
[1750596312358,149.69593572,133.04,133.0,7.51858561]
[1750596312659,2.79593572,133.03,133.0,7.51858561]
[1750596312868,2.79652807,133.02,133.0,7.51858561]
[1750596313169,2.79652807,133.01,133.0,7.51858561]
[1750596315686,2.79685312,133.01,133.0,7.51858561]
[1750596316065,26.0,133.0,132.96,55.13070782]
[1750596316369,2.79596888,132.99,132.96,73.93335523]
[1750596316564,2.79596888,132.98,132.96,73.93335523]
[1750596316779,26.0,133.0,132.96,73.93335523]
[1750596316954,2.79644185,132.99,132.96,73.93335523]
[1750596317159,2.79644185,132.98,132.96,73.93335523]
[1750596317377,33.24456033,133.02,132.96,73.93335523]
[1750596317565,8.38832803,133.01,132.96,73.93335523]
[1750596317766,2.7959677,133.0,132.96,73.93335523]
[1750596318068,2.7959677,132.99,132.96,73.93335523]
[1750596318273,27.6522,133.02,132.96,73.93335523]
[1750596318473,2.79538475,133.01,132.96,73.93335523]
[1750596318776,2.79538475,133.0,132.96,73.93335523]
[1750596318984,2.79538475,132.99,132.96,73.93335523]
[1750596319169,2.79538475,132.98,132.96,73.93335523]
[1750596319483,5.59236033,133.01,132.96,73.93335523]
[1750596319679,2.79483031,133.0,132.96,55.13070782]
[1750596319885,2.79483031,132.99,132.96,26.17070782]
[1750596320078,2.79483031,132.98,132.96,55.13070782]
[1750596320384,5.59236033,133.01,132.96,55.13070782]
[1750596320574,2.79408328,133.0,132.96,55.13070782]
[1750596320782,2.79408328,132.99,132.96,55.13070782]
[1750596321080,2.79408328,132.98,132.96,55.13070782]
[1750596321286,180.14456033,133.02,132.96,55.13070782]
[1750596321585,8.38608659,133.01,132.96,55.13070782]
[1750596321787,2.79372626,133.0,132.96,55.13070782]
[1750596322081,2.29372626,132.99,132.96,55.13070782]
[1750596322280,172.9,133.02,132.96,73.93335523]
[1750596324072,5.58634178,133.01,132.96,55.13070782]
[1750596324470,5.58634178,133.01,132.96,36.48105896]
[1750596324783,5.58634178,133.01,132.95,7.52142295]
[1750596324976,5.58634178,133.0,132.95,36.48142295]
[1750596325283,13.10503147,133.01,132.94,42.78212432]
[1750596325584,5.58634178,133.0,132.94,42.78212432]
[1750596325787,5.58634178,132.99,132.94,13.82212432]
[1750596326004,152.48634178,133.0,132.94,42.78212432]
[1750596326180,5.58634178,132.99,132.94,42.78212432]
[1750596326867,5.58634178,132.99,132.93,18.64964886]
[1750596326868,26.0,132.96,132.9,7.9703]
[1750596327068,26.0,132.95,132.91,7.52368189]
[1750596328094,5.58634178,132.97,132.92,18.64964886]
[1750596328301,172.9,132.98,132.92,47.60964886]
[1750596330381,172.9,132.98,132.93,7.52275633]
[1750596330693,172.9,132.98,132.92,47.60964886]
[1750596330694,26.0,132.95,132.92,7.52317042]
[1750596331472,26.0,132.95,132.91,7.52375687]
[1750596332391,26.0,132.95,132.9,7.52445447]
[1750596333911,26.0,132.93,132.88,6.3]
[1750596334194,28.78549508,132.92,132.88,6.3]
[1750596334369,2.78548789,132.91,132.88,13.82537841]
[1750596334571,2.78120324,132.91,132.86,7.52637485]
[1750596334874,8.67906459,132.91,132.84,117.86166048]
[1750596335091,2.78120324,132.91,132.84,117.86166048]
[1750596335270,2.78120324,132.91,132.84,146.84166048]
[1750596335981,2.78120324,132.91,132.84,154.3693402]
[1750596336389,7.52389054,132.91,132.84,154.3693402]
[1750596336571,26.0,132.87,132.84,117.86166048]
[1750596336896,26.0,132.88,132.83,42.80824183]
[1750596337095,26.0,132.86,132.83,42.80824183]
[1750596337277,26.0,132.86,132.83,6.3]
[1750596338500,26.0,132.86,132.81,26.17916877]
[1750596340472,26.0,132.86,132.81,7.52951991]
[1750596342796,25.9364502,132.86,132.81,7.52951991]
[1750596348781,26.0,132.85,132.81,7.52951991]
[1750596350907,26.0,132.85,132.82,18.64964886]
[1750596352410,26.0,132.85,132.83,7.52841978]
[1750596354404,146.9,132.89,132.84,18.64964886]
[1750596354605,148.4373,132.94,132.86,18.64964886]
[1750596354796,26.0,132.93,132.88,18.64964886]
[1750596355414,26.0,132.93,132.87,29.0]
[1750596355618,148.4373,132.94,132.87,29.0]
[1750596355921,26.0,132.93,132.87,29.0]
[1750596356314,26.0,132.91,132.88,7.52558699]
[1750596356700,26.0,132.91,132.87,36.52603469]
[1750596357109,26.0,132.91,132.83,26.0]
[1750596357321,146.9,132.9,132.84,18.64964886]
[1750596358594,146.9,132.9,132.84,26.17750191]
[1750596363043,146.9,132.9,132.84,44.99713455]
[1750596364105,146.9,132.9,132.84,7.52785305]
[1750596364616,26.0,132.86,132.83,13.828263]
[1750596365900,26.0,132.88,132.84,18.64964886]
[1750596366516,146.9,132.89,132.84,47.62964886]
[1750596367726,146.9,132.89,132.84,36.5078504]
[1750596367903,2.7753666,132.88,132.84,36.5078504]
[1750596370825,146.9,132.89,132.84,36.5078504]
[1750596371133,2.77770421,132.88,132.84,36.5078504]
[1750596371312,2.77812616,132.87,132.84,36.5078504]
[1750596371517,2.77812616,132.88,132.84,36.5078504]
[1750596371720,146.9,132.89,132.84,36.5078504]
[1750596372038,146.9,132.89,132.85,18.64964886]
[1750596373035,146.9,132.89,132.86,7.52671985]
[1750596373732,2.78652095,132.88,132.86,7.52671985]
[1750596373931,146.9,132.89,132.86,7.52671985]
[1750596374120,2.78673929,132.88,132.86,7.52671985]
[1750596374443,146.9,132.89,132.86,7.52671985]
[1750596374610,2.78673409,132.88,132.86,7.52671985]
[1750596374810,146.9,132.89,132.86,7.52671985]
[1750596375066,2.78658874,132.88,132.86,7.52671985]
[1750596375215,146.9,132.89,132.86,7.52671985]
[1750596375410,2.78658704,132.88,132.86,7.52671985]
[1750596375718,146.9,132.89,132.86,7.52671985]
[1750596375917,2.78662114,132.88,132.85,7.52707732]
[1750596376143,146.9,132.89,132.85,7.52707732]
[1750596376638,2.78619198,132.88,132.85,7.52707732]
[1750596376823,2.78619198,132.87,132.85,7.52707732]
[1750596377020,146.9,132.89,132.85,7.52707732]
[1750596377343,2.78887122,132.88,132.85,7.52707732]
[1750596377522,146.9,132.89,132.85,7.52707732]
[1750596377523,2.78887122,132.87,132.85,7.52707732]
[1750596377714,146.9,132.89,132.85,7.52707732]
[1750596377911,2.78889305,132.88,132.85,7.52707732]
[1750596378130,2.78889305,132.87,132.85,7.52707732]
[1750596378329,146.9,132.89,132.85,7.52707732]
[1750596378541,2.7887027,132.88,132.85,7.52707732]
[1750596378826,2.7887027,132.87,132.85,7.52707732]
[1750596379024,2.7887027,132.86,132.85,7.52707732]
[1750596379227,5.58121114,132.88,132.84,26.17750191]
[1750596379448,2.78890745,132.87,132.84,26.17750191]
[1750596379642,2.78890745,132.86,132.84,26.17750191]
[1750596379945,5.58121114,132.88,132.84,26.17750191]
[1750596380149,2.78963847,132.87,132.84,26.17750191]
[1750596380329,2.78963847,132.86,132.84,26.17750191]
[1750596380528,5.58121114,132.88,132.84,26.17750191]
[1750596380729,2.78963249,132.87,132.84,26.17750191]
[1750596380951,2.78963249,132.86,132.84,26.17750191]
[1750596381251,5.58121114,132.88,132.84,26.17750191]
[1750596381548,2.78975207,132.87,132.84,26.17750191]
[1750596381752,2.78975207,132.86,132.84,26.17750191]
[1750596382045,5.58121114,132.88,132.84,26.17750191]
[1750596382349,2.79018471,132.87,132.84,26.17750191]
[1750596382582,2.79018471,132.86,132.84,26.17750191]
[1750596382739,5.58200116,132.88,132.84,26.17750191]
[1750596382932,2.79006722,132.87,132.84,26.17750191]
[1750596383126,2.79006722,132.86,132.84,26.17750191]
[1750596383327,146.9,132.89,132.84,26.17750191]
[1750596383528,8.37270533,132.88,132.84,26.17750191]
[1750596383828,2.79009556,132.87,132.84,26.17750191]
[1750596384028,146.9,132.89,132.84,26.17750191]
[1750596384250,2.7905424,132.88,132.84,26.17750191]
[1750596384448,2.7905424,132.87,132.84,26.17750191]
[1750596384651,146.9,132.89,132.84,26.17750191]
[1750596384847,2.7905424,132.88,132.84,26.17750191]
[1750596385059,2.7905282,132.87,132.84,26.17750191]
[1750596385257,2.7905282,132.86,132.84,26.17750191]
[1750596385443,146.9,132.89,132.84,26.17750191]
[1750596385642,2.79091164,132.88,132.84,26.17750191]
[1750596385850,2.79091164,132.87,132.84,26.17750191]
[1750596386058,146.9,132.89,132.84,26.17750191]
[1750596386242,2.79159161,132.88,132.84,26.17750191]
[1750596386559,146.9,132.89,132.84,26.17750191]
[1750596386560,2.79159161,132.87,132.84,26.17750191]
[1750596386734,146.9,132.89,132.84,26.17750191]
[1750596386935,2.78899117,132.88,132.84,26.17750191]
[1750596387135,2.78899117,132.87,132.84,26.17750191]
[1750596387334,146.9,132.89,132.84,44.99713455]
[1750596387655,2.78898692,132.88,132.84,26.17750191]
[1750596387951,2.78898692,132.87,132.83,13.82788235]
[1750596388151,2.78898692,132.86,132.83,13.82788235]
[1750596388357,2.78898692,132.85,132.83,6.3]
[1750596388649,8.37299621,132.84,132.79,18.64964886]
[1750596388854,2.78898692,132.83,132.78,35.28]
[1750596389057,2.78898692,132.82,132.78,35.28]
[1750596389243,2.78898692,132.81,132.78,6.3]
[1750596389442,2.78898692,132.8,132.78,6.3]
[1750596389629,2.78461428,132.83,132.79,7.53046722]
[1750596389828,2.78461428,132.82,132.79,7.53046722]
[1750596390028,2.78461428,132.81,132.79,7.53046722]
[1750596390253,5.58400929,132.84,132.79,7.53046722]
[1750596390455,2.78466076,132.83,132.79,7.53046722]
[1750596390764,2.78466076,132.82,132.79,7.53046722]
[1750596390936,2.78466076,132.81,132.79,7.53046722]
[1750596391261,2.78466076,132.84,132.79,7.53046722]
[1750596391461,2.78466076,132.83,132.79,7.53046722]
[1750596391759,2.78466076,132.82,132.79,7.53046722]
[1750596391963,2.78466076,132.81,132.79,7.53046722]
[1750596392138,5.58400929,132.85,132.79,7.53046722]
[1750596392339,2.78461,132.84,132.79,7.53046722]
[1750596392538,28.78461,132.83,132.78,13.83111338]
[1750596392856,2.78461,132.82,132.78,13.83111338]
[1750596393037,26.0,132.83,132.78,13.83111338]
[1750596393038,2.78461,132.81,132.78,13.83111338]
[1750596393233,2.78461,132.82,132.78,13.83111338]
[1750596393435,2.78173927,132.81,132.78,13.83111338]
[1750596393655,2.78173927,132.82,132.78,13.83111338]
[1750596393835,2.78173927,132.81,132.78,6.3]
[1750596394039,26.0,132.79,132.74,35.2674]
[1750596394258,2.78173927,132.78,132.76,18.64964886]
[1750596394448,2.78147537,132.8,132.76,18.64964886]
[1750596394654,2.78147537,132.81,132.76,18.64964886]
[1750596395046,2.78147537,132.81,132.77,28.98]
[1750596395961,2.78147537,132.8,132.77,36.51138937]
[1750596396135,33.52939942,132.82,132.76,7.53195643]
[1750596396338,26.0,132.79,132.75,7.53277178]
[1750596396665,2.778245,132.78,132.73,15.2616263]
[1750596396867,2.778245,132.77,132.73,7.7276047]
[1750596397163,28.778245,132.76,132.73,1.4276047]
[1750596397343,2.778245,132.75,132.73,1.4276047]
[1750596397744,26.0,132.76,132.73,1.4276047]
[1750596397948,2.77934068,132.75,132.73,1.4276047]
[1750596398459,2.77049708,132.75,132.73,1.4276047]
[1750596399467,26.0,132.74,132.73,8.96169646]
[1750596399641,156.05492782,132.79,132.73,8.96169646]
[1750596399642,26.0,132.78,132.73,8.96169646]
[1750596399966,2.77162822,132.77,132.73,8.96169646]
[1750596400162,26.0,132.78,132.73,8.96169646]
[1750596400368,28.77161303,132.77,132.73,8.96169646]
[1750596400665,26.0,132.77,132.73,8.96169646]
[1750596403576,26.0,132.78,132.73,34.28372587]
[1750596403779,6.3,132.81,132.74,18.64964886]
[1750596403948,26.0,132.79,132.74,20.23294886]
[1750596405867,26.0,132.79,132.75,7.53295668]
[1750596412672,172.9,132.82,132.75,26.36534839]
[1750596413153,172.9,132.82,132.76,18.64964886]
[1750596414775,9.20140178,132.83,132.78,24.67714886]
[1750596416262,9.20140178,132.83,132.8,18.64964886]
[1750596418261,9.20140178,132.83,132.81,7.52955349]
[1750596421786,9.20140178,132.83,132.78,6.0275]
[1750596421988,9.20140178,132.83,132.78,13.55854485]
[1750596424096,26.0,132.82,132.77,7.53164918]
[1750596424299,2.77477661,132.81,132.77,7.53164918]
[1750596427074,26.0,132.82,132.78,18.64964886]
[1750596427272,26.0,132.82,132.77,7.53164918]
[1750596428401,26.0,132.82,132.78,18.64964886]
[1750596428999,26.0,132.82,132.77,26.36120404]
[1750596429000,26.0,132.82,132.79,7.53068755]
[1750596429599,2.77888989,132.81,132.78,7.53106356]
[1750596429979,26.0,132.82,132.78,7.53106356]
[1750596430180,2.78183559,132.81,132.78,7.53106356]
[1750596431285,26.0,132.82,132.78,7.53106356]
[1750596431504,26.0,132.82,132.78,26.18071242]
[1750596431701,2.78204579,132.81,132.78,26.18071242]
[1750596432000,26.0,132.82,132.78,26.18071242]
[1750596432181,2.78191703,132.81,132.78,26.18071242]
[1750596432377,2.78191703,132.81,132.76,7.53238927]
[1750596432605,2.78191703,132.8,132.76,26.18203813]
[1750596432790,2.78191703,132.79,132.76,45.01301131]
[1750596432996,2.78572757,132.81,132.77,18.64964886]
[1750596433200,2.78591689,132.81,132.78,7.5312547]
[1750596434404,2.78591689,132.8,132.78,7.5312547]
[1750596434704,2.78591689,132.81,132.75,18.64964886]
[1750596434891,2.78591689,132.8,132.75,18.64964886]
[1750596435209,2.78521251,132.81,132.75,18.64964886]
[1750596435386,2.78521251,132.8,132.75,18.64964886]
[1750596435592,2.78521251,132.81,132.76,7.53238927]
[1750596435792,2.78563932,132.8,132.76,7.53238927]
[1750596436101,2.78563932,132.81,132.76,7.53238927]
[1750596436401,2.78563932,132.8,132.76,7.53238927]
[1750596436610,2.78563932,132.81,132.76,7.53238927]
[1750596436781,2.78563932,132.8,132.76,7.53238927]
[1750596436982,2.78563932,132.81,132.76,7.53238927]
[1750596437184,2.78563932,132.8,132.76,7.53238927]
[1750596437383,2.78563932,132.81,132.76,7.53238927]
[1750596437583,2.78563932,132.8,132.76,7.53238927]
[1750596437784,2.78563932,132.81,132.76,7.53238927]
[1750596438001,2.78563932,132.8,132.76,7.53238927]
[1750596438197,2.78563932,132.81,132.76,7.53238927]
[1750596438401,2.78563932,132.8,132.76,7.53238927]
[1750596438602,2.78563932,132.81,132.76,7.53238927]
[1750596438810,2.78563932,132.8,132.76,7.53238927]
[1750596438980,2.78563932,132.81,132.76,7.53238927]
[1750596439185,2.78563932,132.8,132.76,7.53238927]
[1750596439380,2.78563932,132.81,132.76,7.53238927]
[1750596439608,2.78563932,132.8,132.76,7.53238927]
[1750596439912,2.78563932,132.81,132.76,7.53238927]
[1750596440277,2.78563932,132.81,132.76,26.36336245]
[1750596442095,2.78563932,132.8,132.77,18.64964886]
[1750596442295,2.78563932,132.81,132.77,18.64964886]
[1750596442494,2.78563932,132.8,132.77,18.64964886]
[1750596442693,9.20140178,132.83,132.79,26.93444886]
[1750596442894,11.98722319,132.83,132.79,26.93444886]
[1750596443097,9.20140178,132.83,132.8,7.53012048]
[1750596443406,2.78582141,132.82,132.8,7.53012048]
[1750596443711,2.7891532,132.82,132.8,7.53012048]
[1750596443917,9.20140178,132.83,132.8,7.53012048]
[1750596444209,2.78916034,132.82,132.8,7.53012048]
[1750596444398,9.20140178,132.83,132.8,7.53012048]
[1750596444599,2.78971014,132.82,132.8,7.53012048]
[1750596444806,9.20140178,132.83,132.8,7.53012048]
[1750596445017,2.78989276,132.82,132.8,7.53012048]
[1750596445194,2.78989276,132.81,132.8,7.53012048]
[1750596445389,2.78989276,132.82,132.76,8.2848]
[1750596445612,2.78989276,132.81,132.76,8.2848]
[1750596445815,2.78989276,132.8,132.76,8.2848]
[1750596446008,2.78989276,132.79,132.76,8.2848]
[1750596446209,14.77801235,132.83,132.76,8.2848]
[1750596446394,8.36863943,132.82,132.76,8.2848]
[1750596446718,2.79202886,132.81,132.76,7.53220888]
[1750596446922,2.79202886,132.8,132.76,7.53220888]
[1750596447213,2.79202886,132.79,132.76,7.53220888]
[1750596447417,2.79202886,132.78,132.76,7.53220888]
[1750596447601,5.57661057,132.81,132.76,7.53220888]
[1750596447800,2.79215454,132.8,132.76,7.53220888]
[1750596448115,2.79215454,132.79,132.76,7.53220888]
[1750596448315,13.10567077,132.82,132.76,7.53220888]
[1750596448512,2.79241616,132.81,132.76,7.53220888]
[1750596448708,2.79241616,132.8,132.76,7.53220888]
[1750596448910,2.79241616,132.79,132.76,7.53220888]
[1750596449212,2.79241616,132.78,132.76,7.53220888]
[1750596449392,5.57661057,132.82,132.76,7.53220888]
[1750596449593,8.36902048,132.81,132.76,7.53220888]
[1750596449793,2.79240991,132.8,132.76,7.53220888]
[1750596449992,2.79240991,132.79,132.76,7.53220888]
[1750596450202,2.79240991,132.78,132.76,7.53220888]
[1750596450400,5.57661057,132.81,132.76,7.53220888]
[1750596450624,2.79276081,132.8,132.76,7.53220888]
[1750596450804,2.79276081,132.79,132.76,7.53220888]
[1750596450999,2.79276081,132.78,132.76,7.53220888]
[1750596451311,5.57661057,132.81,132.76,7.53220888]
[1750596451515,2.79146292,132.8,132.76,7.53220888]
[1750596451720,2.79146292,132.79,132.76,7.53220888]
[1750596451914,2.79146292,132.78,132.76,7.53220888]
[1750596452103,5.57661057,132.82,132.76,7.53220888]
[1750596452412,8.36800705,132.81,132.76,7.53220888]
[1750596452601,2.79139648,132.8,132.76,7.53220888]
[1750596452801,2.79121467,132.79,132.76,7.53220888]
[1750596453116,5.57661057,132.82,132.77,7.53182194]
[1750596453330,2.79171289,132.81,132.77,7.53182194]
[1750596453527,2.79171289,132.8,132.77,7.53182194]
[1750596453817,14.77801235,132.83,132.77,7.53182194]
[1750596454025,2.79215983,132.82,132.79,18.64964886]
[1750596454203,14.77801235,132.83,132.79,18.64964886]
[1750596454204,9.20140178,132.83,132.79,18.64964886]
[1750596454395,2.79259035,132.82,132.79,18.64964886]
[1750596454614,9.20140178,132.83,132.79,18.64964886]
[1750596455105,9.20140178,132.83,132.8,7.53012048]
[1750596455417,9.20140178,132.83,132.82,18.64964886]
[1750596455613,11.9948633,132.83,132.82,18.64964886]
[1750596455810,2.79346152,132.83,132.82,18.64964886]
[1750596456610,2.79346152,132.83,132.82,26.17863545]
[1750596458600,2.79286903,132.83,132.82,26.17863545]
[1750596461348,2.79286903,132.83,132.81,36.50934129]
[1750596461541,2.79286903,132.82,132.75,18.8310674]
[1750596461838,2.79286903,132.81,132.76,35.26]
[1750596462041,2.79286903,132.8,132.77,18.64964886]
[1750596462334,2.79286903,132.79,132.78,26.0]